bitfinex/quotes_SOLUSD_20240718
["timestamp","ask_amount","ask_price","bid_price","bid_amount"]
[1721343364434,14.96,159.96,159.93,21.8834]
[1721343364614,59.84,160.0,159.93,21.8834]
[1721343364615,14.96,159.94,159.93,21.8834]
[1721343370307,14.96,159.94,159.93,15.6311]
[1721343371329,37.6999,159.94,159.91,6.2535]
[1721343371515,14.96,159.92,159.9,21.8879]
[1721343371827,28.9922,159.94,159.82,31.58913179]
[1721343371828,14.96,159.91,159.89,6.2541]
[1721343372036,6.2527,159.93,159.89,6.2541]
[1721343372614,14.96,159.9,159.89,6.2541]
[1721343375332,14.96,159.9,159.88,6.2545]
[1721343375539,14.96,159.89,159.88,6.2545]
[1721343375725,14.96,159.89,159.87,21.8919]
[1721343375930,14.96,159.88,159.87,21.8919]
[1721343378338,14.96,159.88,159.87,15.637]
[1721343379436,6.2539,159.9,159.87,15.637]
[1721343379617,14.96,159.88,159.87,21.892]
[1721343380220,14.96,159.88,159.87,15.637]
[1721343383624,14.96,159.88,159.86,6.2553]
[1721343383933,6.2539,159.9,159.86,6.2553]
[1721343383934,14.96,159.87,159.86,6.2553]
[1721343387948,22.7399,159.94,159.86,15.638]
[1721343388247,14.96,159.87,159.86,15.638]
[1721343389148,14.96,159.87,159.83,15.6408]
[1721343389448,14.96,159.87,159.85,6.2557]
[1721343391034,14.96,159.86,159.85,6.2557]
[1721343391441,14.96,159.86,159.84,6.2562]
[1721343392643,15.314,159.89,159.83,21.8974]
[1721343392644,14.96,159.85,159.83,21.8974]
[1721343392853,14.96,159.85,159.83,15.6408]
[1721343393989,14.96,159.85,159.84,6.2562]
[1721343396145,14.96,159.86,159.85,6.2556]
[1721343396942,6.77633189,160.01,159.85,16.21117631]
[1721343396943,42.1128,159.93,159.85,16.21117631]
[1721343397139,14.96,159.9,159.86,1.25094444]
[1721343397343,14.96,159.9,159.88,6.2544]
[1721343399079,14.96,159.9,159.87,21.8916]
[1721343400260,14.96,159.89,159.87,21.8916]
[1721343404180,14.96,159.89,159.87,15.6367]
[1721343404478,14.96,159.88,159.86,6.2553]
[1721343404654,14.96,159.89,159.86,6.2553]
[1721343404849,21.2139,159.9,159.86,6.2553]
[1721343405279,21.2139,159.9,159.86,7.50628784]
[1721343405448,14.96,159.89,159.86,6.2553]
[1721343406279,14.96,159.88,159.86,6.2553]
[1721343407280,6.2534,159.92,159.86,15.6379]
[1721343407464,14.96,159.92,159.87,16.21103718]
[1721343407779,37.0728,159.93,159.9,6.2536]
[1721343408779,14.96,159.92,159.9,6.2536]
[1721343409980,37.0728,159.93,159.9,6.2536]
[1721343410883,43.3255,159.93,159.89,21.8898]
[1721343412186,36.8196,159.93,159.89,21.8898]
[1721343412368,21.8596,159.93,159.89,21.8898]
[1721343412576,36.8196,159.93,159.89,21.8898]
[1721343412762,6.2535,159.91,159.87,6.2547]
[1721343412974,14.96,159.92,159.87,14.96]
[1721343413170,21.2131,159.92,159.88,6.2545]
[1721343413867,14.96,159.92,159.89,6.2542]
[1721343414988,14.96,159.9,159.88,21.891]
[1721343415191,14.96,159.9,159.87,6.2547]
[1721343415695,14.96,159.9,159.88,6.2546]
[1721343416776,14.96,159.91,159.88,6.2546]
[1721343416982,14.96,159.92,159.89,6.254]
[1721343419795,21.8597,159.93,159.89,6.254]
[1721343419796,14.96,159.91,159.89,6.254]
[1721343420595,14.96,159.92,159.89,6.254]
[1721343420766,36.8197,159.93,159.89,6.254]
[1721343421485,30.5669,159.93,159.89,6.254]
[1721343421681,30.5669,159.93,159.9,6.2538]
[1721343423480,14.96,159.92,159.9,6.2538]
[1721343424872,14.96,159.92,159.89,21.8892]
[1721343427199,15.6069,159.93,159.89,15.6351]
[1721343427397,15.6069,159.93,159.91,15.6336]
[1721343427599,30.5669,159.93,159.91,21.887]
[1721343428096,30.5669,159.93,159.91,15.6336]
[1721343431001,30.5669,159.93,159.9,6.2537]
[1721343431188,14.96,159.92,159.9,6.2537]
[1721343432073,15.6069,159.93,159.9,6.2537]
[1721343432405,30.5669,159.93,159.9,6.2537]
[1721343434011,14.96,159.92,159.88,21.8903]
[1721343434202,21.2131,159.92,159.88,21.8903]
[1721343434706,14.96,159.91,159.89,6.2542]
[1721343434911,14.96,159.91,159.88,21.8905]
[1721343435203,14.96,159.9,159.87,6.2548]
[1721343437015,21.2137,159.91,159.87,6.2548]
[1721343439784,14.96,159.9,159.87,6.2548]
[1721343442828,21.2137,159.91,159.87,6.2548]
[1721343447418,14.96,159.89,159.85,21.8943]
[1721343448219,21.2144,159.89,159.85,21.8943]
[1721343448517,14.96,159.89,159.86,6.2554]
[1721343448715,21.2143,159.89,159.85,21.8945]
[1721343451717,14.96,159.89,159.86,6.2553]
[1721343452729,6.254,159.9,159.86,6.2553]
[1721343452902,14.96,159.89,159.86,6.2553]
[1721343455221,14.96,159.88,159.85,21.8946]
[1721343456726,14.96,159.87,159.85,21.8946]
[1721343456916,14.96,159.88,159.85,21.8946]
[1721343457733,14.96,159.88,159.85,15.6388]
[1721343457923,6.2538,159.91,159.87,6.255]
[1721343458233,14.96,159.88,159.87,6.255]
[1721343458529,14.96,159.88,159.86,6.2554]
[1721343458906,14.96,159.89,159.86,6.2554]
[1721343460499,14.96,159.89,159.86,6.2553]
[1721343461823,14.96,159.89,159.87,6.255]
[1721343462547,14.96,159.89,159.86,6.2553]
[1721343466632,14.96,159.88,159.86,6.2553]
[1721343473739,26.2539,159.9,159.86,6.2553]
[1721343473935,20.0,159.9,159.87,15.6371]
[1721343474118,14.96,159.88,159.87,15.6371]
[1721343474514,14.96,159.88,159.87,21.8921]
[1721343474937,14.96,159.88,159.87,15.6371]
[1721343475537,14.96,159.89,159.87,15.6371]
[1721343477840,14.96,159.89,159.86,6.2553]
[1721343478445,21.2143,159.89,159.86,6.2553]
[1721343478832,14.96,159.88,159.86,6.2553]
[1721343481026,14.96,159.88,159.85,6.2557]
[1721343482721,14.96,159.9,159.86,16.88911304]
[1721343482930,22.0653,159.93,159.86,1.25101304]
[1721343483138,14.96,159.91,159.89,6.2542]
[1721343483340,14.96,159.91,159.88,21.8909]
[1721343484331,14.96,159.91,159.89,6.2542]
[1721343485051,6.2531,159.92,159.89,6.2542]
[1721343485348,14.96,159.91,159.89,6.2542]
[1721343486154,14.96,159.91,159.88,21.8909]
[1721343487826,14.96,159.91,159.89,6.2542]
[1721343490744,14.96,159.91,159.88,21.8909]
[1721343491940,14.96,159.9,159.88,21.8909]
[1721343492536,14.96,159.89,159.85,16.88976005]
[1721343492843,14.96,159.87,159.85,15.639]
[1721343493949,14.96,159.87,159.86,6.2553]
[1721343494151,14.96,159.89,159.87,6.2547]
[1721343497730,14.96,159.88,159.87,6.2547]
[1721343498853,14.96,159.89,159.87,6.2547]
[1721343499368,14.96,159.88,159.87,6.2547]
[1721343503540,15.6276,159.98,159.86,16.21092669]
[1721343503739,14.96,159.93,159.91,6.2533]
[1721343503939,20.0,159.95,159.92,6.2531]
[1721343504243,20.0,159.95,159.93,6.2525]
[1721343504452,14.96,159.94,159.92,21.8852]
[1721343504639,14.96,159.93,159.92,21.8852]
[1721343507370,14.96,159.94,159.93,6.2527]
[1721343508472,14.96,159.96,159.94,6.2523]
[1721343508766,14.96,159.97,159.94,6.2523]
[1721343509759,14.96,159.96,159.94,6.2523]
[1721343509967,16.4846,160.0,159.93,16.21037502]
[1721343510263,14.96,160.0,159.98,6.2507]
[1721343510475,15.882,160.04,159.99,16.87581743]
[1721343510777,30.842,160.04,159.99,31.83581743]
[1721343510980,30.842,160.04,160.01,6.2493]
[1721343511280,14.96,160.05,160.02,7.49887566]
[1721343511593,12.8848,160.06,160.01,21.8729]
[1721343511786,14.96,160.04,160.01,21.8729]
[1721343512381,14.96,160.03,160.01,21.8729]
[1721343512681,14.96,160.04,160.01,21.8729]
[1721343513176,12.8848,160.06,160.02,6.2491]
[1721343513387,6.2472,160.07,160.02,7.49879192]
[1721343513686,14.96,160.05,160.02,7.49879192]
[1721343513859,14.96,160.05,160.02,6.2491]
[1721343514256,14.96,160.05,160.02,7.49878498]
[1721343514900,15.882,160.08,160.03,15.6214]
[1721343515187,14.96,160.06,160.02,1.24959167]
[1721343515374,14.96,160.06,160.05,15.6195]
[1721343515853,14.96,160.07,160.05,15.6195]
[1721343516055,30.842,160.08,160.05,15.6195]
[1721343516256,16.644,160.12,160.06,1.24947864]
[1721343516452,14.96,160.1,160.08,6.2465]
[1721343516891,22.8893,160.12,160.07,15.6174]
[1721343517053,14.96,160.11,160.07,15.6174]
[1721343517259,16.644,160.12,160.08,7.49595173]
[1721343517579,16.644,160.12,160.09,6.2464]
[1721343517881,14.96,160.11,160.08,7.49595173]
[1721343518280,6.5064,160.14,160.1,15.6149]
[1721343518485,14.96,160.13,160.11,6.2454]
[1721343518794,14.96,160.14,160.11,6.2454]
[1721343519496,14.96,160.15,160.12,15.6126]
[1721343519703,14.96,160.15,160.13,1.24883584]
[1721343520399,14.96,160.17,160.14,6.2442]
[1721343521291,14.96,160.16,160.14,6.2442]
[1721343521465,15.2647,160.2,160.14,6.2442]
[1721343521466,14.96,160.17,160.14,6.2442]
[1721343521866,14.96,160.16,160.14,6.2442]
[1721343522699,20.0,160.19,160.15,6.2437]
[1721343522873,14.96,160.17,160.16,6.2434]
[1721343523072,20.0,160.19,160.16,6.2434]
[1721343523287,14.96,160.18,160.16,6.2434]
[1721343523474,14.96,160.18,160.15,7.49264888]
[1721343523683,14.96,160.17,160.15,7.49264888]
[1721343524193,14.96,160.18,160.15,7.49264888]
[1721343524389,6.204,160.22,160.16,15.6085]
[1721343524599,14.96,160.21,160.17,1.24838814]
[1721343524898,14.96,160.19,160.18,7.49120845]
[1721343525195,14.96,160.19,160.16,15.6085]
[1721343525397,14.96,160.18,160.17,7.49184288]
[1721343525695,14.96,160.19,160.18,6.2429]
[1721343525883,14.96,160.19,160.16,16.85705824]
[1721343526081,14.96,160.19,160.16,15.6085]
[1721343526499,14.96,160.17,160.16,15.6085]
[1721343526677,14.96,160.17,160.16,21.8522]
[1721343527203,14.96,160.17,160.16,15.6085]
[1721343527372,14.96,160.17,160.15,6.2438]
[1721343527570,14.96,160.16,160.15,6.2438]
[1721343529071,14.96,160.16,160.13,15.6118]
[1721343529272,14.96,160.14,160.13,15.6118]
[1721343530087,14.96,160.14,160.13,21.8567]
[1721343531102,14.96,160.14,160.07,37.7303]
[1721343531397,14.96,160.1,160.09,21.8618]
[1721343532391,14.96,160.11,160.1,6.246]
[1721343533583,30.1131,160.11,160.09,15.6154]
[1721343533909,14.96,160.1,160.07,6.2472]
[1721343534123,14.96,160.08,160.07,6.2472]
[1721343534784,14.96,160.08,159.99,6.495]
[1721343534977,14.96,160.08,160.02,15.6222]
[1721343534978,14.96,160.03,160.02,15.6222]
[1721343535199,14.96,160.03,160.02,21.8714]
[1721343536191,15.1531,160.11,160.02,15.6222]
[1721343536484,14.96,160.04,160.03,6.2488]
[1721343537013,14.96,160.05,160.04,6.2484]
[1721343537582,14.96,160.06,160.05,21.8675]
[1721343539295,14.96,160.06,160.05,15.6195]
[1721343539983,14.96,160.06,160.05,21.8675]
[1721343540409,15.1531,160.11,160.08,6.2467]
[1721343540715,14.96,160.09,160.08,6.2467]
[1721343540887,14.96,160.09,160.06,15.6186]
[1721343541410,14.96,160.09,160.08,6.2468]
[1721343541716,14.96,160.1,160.07,1.24927678]
[1721343542315,14.96,160.1,160.05,14.96]
[1721343542316,14.96,160.1,160.09,6.2464]
[1721343542803,30.1131,160.11,160.1,6.246]
[1721343543002,14.96,160.11,160.09,6.2464]
[1721343543409,14.96,160.1,160.09,6.2464]
[1721343545914,9.46,160.1,160.09,6.2464]
[1721343546622,15.8577,160.15,160.1,6.2459]
[1721343546811,14.96,160.13,160.11,1.24901199]
[1721343547199,14.96,160.14,160.11,1.24901199]
[1721343547400,14.96,160.14,160.11,7.49451199]
[1721343547800,14.96,160.13,160.11,7.49451199]
[1721343548330,14.96,160.13,160.11,6.2455]
[1721343548514,14.96,160.13,160.11,7.4945213]
[1721343549233,14.96,160.13,160.11,7.49451678]
[1721343550834,14.96,160.14,160.12,6.2453]
[1721343551242,14.96,160.13,160.11,7.49461678]
[1721343552339,14.96,160.14,160.13,6.2449]
[1721343552629,30.8177,160.15,160.13,6.2449]
[1721343552811,14.96,160.15,160.14,6.2445]
[1721343553133,14.96,160.16,160.14,6.2445]
[1721343553430,14.96,160.15,160.14,6.2445]
[1721343553604,14.96,160.15,160.13,6.2447]
[1721343553809,14.96,160.14,160.13,6.2447]
[1721343555837,14.96,160.14,160.12,15.6127]
[1721343555838,14.96,160.14,160.12,21.8579]
[1721343556540,14.96,160.14,160.13,6.2449]
[1721343558333,14.96,160.14,160.09,15.6157]
[1721343558638,14.96,160.11,160.09,15.6157]
[1721343558813,14.96,160.11,160.1,6.2458]
[1721343559642,14.96,160.11,160.09,15.6157]
[1721343559807,14.96,160.1,160.09,15.6157]
[1721343561820,14.96,160.1,160.09,21.8621]
[1721343562834,15.5458,160.13,160.09,21.8621]
[1721343563035,15.5458,160.13,160.11,6.2456]
[1721343563337,14.96,160.12,160.11,6.2456]
[1721343563534,15.7295,160.17,160.13,6.2448]
[1721343563727,14.96,160.14,160.13,6.2448]
[1721343564927,14.96,160.15,160.13,6.2448]
[1721343565434,14.96,160.14,160.13,6.2448]
[1721343566939,21.9728,160.17,160.13,6.2448]
[1721343567147,14.96,160.15,160.13,6.2448]
[1721343567324,14.96,160.15,160.12,21.8583]
[1721343568848,14.96,160.14,160.12,21.8583]
[1721343569356,14.96,160.13,160.11,6.2455]
[1721343569823,15.7295,160.17,160.1,6.246]
[1721343569824,14.96,160.12,160.1,6.246]
[1721343570432,14.96,160.12,160.11,6.2457]
[1721343571846,14.96,160.13,160.12,6.2452]
[1721343572845,14.96,160.13,160.11,6.2455]
[1721343573030,14.96,160.12,160.11,6.2455]
[1721343574442,6.2438,160.16,160.11,6.2455]
[1721343574643,14.96,160.13,160.11,6.2455]
[1721343574845,14.96,160.13,160.12,6.2453]
[1721343575151,14.96,160.14,160.13,6.2447]
[1721343576645,14.96,160.14,160.12,6.2451]
[1721343576835,14.96,160.13,160.12,6.2451]
[1721343580036,14.96,160.14,160.13,6.2449]
[1721343580243,15.7295,160.17,160.14,15.6111]
[1721343580430,14.96,160.16,160.14,15.6111]
[1721343581635,14.96,160.16,160.14,21.8552]
[1721343584965,15.7608,160.21,160.17,15.6082]
[1721343585139,15.7608,160.21,160.17,21.8514]
[1721343585140,14.96,160.19,160.17,21.8514]
[1721343585650,14.96,160.18,160.17,21.8514]
[1721343586158,22.0026,160.21,160.17,21.8514]
[1721343586159,14.96,160.19,160.17,21.8514]
[1721343586665,14.96,160.18,160.17,21.8514]
[1721343587748,14.96,160.2,160.18,6.2429]
[1721343588556,14.96,160.2,160.17,21.8514]
[1721343588739,14.96,160.19,160.17,21.8514]
[1721343590465,14.96,160.19,160.17,15.6082]
[1721343590646,14.96,160.18,160.16,6.2436]
[1721343590848,14.96,160.17,160.15,6.2438]
[1721343591051,14.96,160.16,160.15,6.2438]
[1721343591253,14.96,160.17,160.16,6.2436]
[1721343591467,14.96,160.17,160.15,6.244]
[1721343591847,14.96,160.16,160.15,6.244]
[1721343592166,14.96,160.17,160.15,6.244]
[1721343592941,14.96,160.16,160.15,6.244]
[1721343593452,22.0027,160.21,160.16,6.2437]
[1721343593654,20.0,160.2,160.17,6.2433]
[1721343595364,20.0,160.2,160.16,15.6091]
[1721343595558,14.96,160.17,160.16,21.8527]
[1721343596348,14.96,160.17,160.16,15.6091]
[1721343598348,14.96,160.17,160.16,21.8528]
[1721343600172,14.96,160.17,160.16,15.6091]
[1721343600354,14.96,160.17,160.14,6.2441]
[1721343600559,14.96,160.15,160.13,15.6118]
[1721343601057,14.96,160.16,160.13,15.6118]
[1721343601376,14.96,160.16,160.08,37.7293]
[1721343601377,14.96,160.17,160.16,15.6089]
[1721343601676,22.0026,160.21,160.17,6.2433]
[1721343601841,15.7608,160.21,160.2,6.2421]
[1721343602041,23.2804836,160.25,160.21,6.2418]
[1721343602261,23.2804836,160.25,160.2,15.6049]
[1721343602466,17.0399836,160.25,160.22,15.6027]
[1721343602759,0.8142836,160.25,160.23,1.24805028]
[1721343602965,0.8142836,160.25,160.24,7.4885608]
[1721343603370,0.8142836,160.25,160.24,22.4485608]
[1721343603576,0.8142836,160.25,160.24,66.2006]
[1721343604367,0.8142836,160.25,160.24,67.44839031]
[1721343606747,0.8142836,160.25,160.24,66.2006]
[1721343608268,0.8142836,160.25,160.24,7.48835266]
[1721343608474,15.7742836,160.25,160.24,7.48835266]
[1721343609355,15.7742836,160.25,160.22,21.8437]
[1721343609562,14.96,160.23,160.22,21.8437]
[1721343609958,14.96,160.23,160.16,37.7137]
[1721343609959,14.96,160.23,160.19,15.6064]
[1721343610157,14.96,160.2,160.19,15.6064]
[1721343610483,0.8142836,160.25,160.22,6.241]
[1721343610770,14.96,160.23,160.22,6.241]
[1721343611576,14.96,160.23,160.21,21.8454]
[1721343611750,14.96,160.22,160.21,21.8454]
[1721343612178,7.0546836,160.25,160.21,21.8454]
[1721343612571,6.2406,160.24,160.2,6.2421]
[1721343612777,7.0545836,160.25,160.2,6.2421]
[1721343613081,7.0545836,160.25,160.21,6.2416]
[1721343613253,7.0545836,160.25,160.2,6.2421]
[1721343613780,6.2406,160.24,160.2,6.2421]
[1721343615073,7.0545836,160.25,160.21,6.2416]
[1721343615278,0.8142836,160.25,160.22,1.24814894]
[1721343616384,0.8142836,160.25,160.21,1.24815094]
[1721343616600,7.0545836,160.25,160.21,7.48985094]
[1721343617675,7.0545836,160.25,160.21,6.2417]
[1721343617877,0.8142836,160.25,160.22,6.2412]
[1721343618863,0.8142836,160.25,160.21,6.2416]
[1721343619494,7.0545836,160.25,160.21,6.2416]
[1721343619784,6.2407,160.24,160.2,15.6051]
[1721343620085,6.2407,160.24,160.2,21.847]
[1721343620277,7.0545836,160.25,160.21,1.24823826]
[1721343620480,7.0545836,160.25,160.21,7.48993826]
[1721343620865,7.0545836,160.25,160.21,6.2417]
[1721343621067,0.8142836,160.25,160.21,7.48993649]
[1721343621387,0.8142836,160.25,160.22,6.2413]
[1721343621968,0.8142836,160.25,160.23,7.48914986]
[1721343622169,0.8142836,160.25,160.23,6.241]
[1721343622368,0.8142836,160.25,160.23,7.48903653]
[1721343624079,0.8142836,160.25,160.23,1.24803653]
[1721343624284,0.8142836,160.25,160.22,15.6033]
[1721343624491,0.8142836,160.25,160.24,7.48863791]
[1721343626189,0.8142836,160.25,160.24,52.48863791]
[1721343626483,0.8142836,160.25,160.24,51.2406]
[1721343627385,0.8142836,160.25,160.24,6.2406]
[1721343628797,0.8142836,160.25,160.23,6.2409]
[1721343629290,7.0547836,160.25,160.21,6.2414]
[1721343629586,7.0547836,160.25,160.21,15.6042]
[1721343630289,6.2406,160.24,160.21,15.6042]
[1721343631295,7.0545836,160.25,160.21,21.8459]
[1721343631463,0.8142836,160.25,160.22,6.2413]
[1721343631668,20.8142836,160.25,160.22,6.2413]
[1721343632081,20.8142836,160.25,160.21,21.8459]
[1721343632500,6.2411,160.23,160.18,21.8494]
[1721343632691,6.2411,160.23,160.18,15.6068]
[1721343632891,6.2411,160.23,160.19,6.2423]
[1721343633202,6.2407,160.24,160.2,6.2421]
[1721343634402,6.2407,160.24,160.19,6.2424]
[1721343635588,6.2407,160.24,160.2,6.2421]
[1721343636502,6.241,160.23,160.19,6.2425]
[1721343637093,15.9981,160.21,160.18,15.6068]
[1721343638094,22.2399,160.21,160.18,15.6068]
[1721343638300,14.99,160.19,160.18,15.6068]
[1721343638696,14.99,160.19,160.17,6.2431]
[1721343638900,14.99,160.18,160.17,6.2431]
[1721343640285,52.2299,160.21,160.17,6.2431]
[1721343640484,20.0,160.2,160.17,6.2431]
[1721343640703,26.2422,160.2,160.16,6.2437]
[1721343642700,6.2422,160.2,160.16,6.2437]
[1721343642906,52.23,160.21,160.16,6.2437]
[1721343643204,20.0,160.2,160.16,6.2437]
[1721343643614,26.2422,160.2,160.16,6.2437]
[1721343644191,6.2426,160.19,160.15,21.8537]
[1721343644507,6.2426,160.19,160.15,15.6096]
[1721343644694,20.0,160.18,160.15,15.6096]
[1721343644896,20.0,160.18,160.15,21.8534]
[1721343645690,6.2443,160.15,160.11,15.614]
[1721343645884,6.2446,160.14,160.08,15.6167]
[1721343646186,26.2446,160.14,160.09,6.2462]
[1721343646381,6.2449,160.13,160.09,6.2462]
[1721343648190,6.2453,160.12,160.08,21.8635]
[1721343652809,20.0,160.14,160.1,15.6144]
[1721343653002,20.0,160.14,160.11,6.2455]
[1721343653513,21.9606,160.17,160.11,1.24907897]
[1721343653700,21.9606,160.17,160.14,15.6108]
[1721343653899,21.9606,160.17,160.14,21.8552]
[1721343654591,15.4395,160.17,160.14,21.8552]
[1721343656109,15.4395,160.17,160.14,15.6108]
[1721343656504,21.6829,160.17,160.14,15.6108]
[1721343656715,21.6829,160.17,160.13,6.2448]
[1721343657406,21.6829,160.17,160.12,7.49394996]
[1721343657998,15.4395,160.17,160.11,21.8593]
[1721343658615,6.2438,160.16,160.11,21.8593]
[1721343658911,21.6829,160.17,160.12,6.2452]
[1721343659290,6.2438,160.16,160.12,6.2452]
[1721343659914,6.2441,160.15,160.11,15.6137]
[1721343660893,6.0018,160.14,160.11,15.6137]
[1721343661302,6.0018,160.14,160.11,21.8593]
[1721343663904,12.2463,160.14,160.1,6.2459]
[1721343664292,12.2463,160.14,160.09,6.2464]
[1721343664606,6.245,160.13,160.09,6.2464]
[1721343665014,6.245,160.13,160.08,21.8632]
[1721343665705,6.0018,160.14,160.09,1.24928977]
[1721343665910,6.0018,160.14,160.11,6.2456]
[1721343666295,15.0,160.12,160.11,6.2456]
[1721343666498,15.0,160.12,160.1,21.8609]
[1721343666698,15.0,160.11,160.1,21.8609]
[1721343666894,15.0,160.11,160.09,6.2463]
[1721343667319,15.0,160.1,160.09,6.2463]
[1721343668407,15.0,160.1,160.08,6.2467]
[1721343668808,15.0,160.09,160.08,6.2467]
[1721343669904,15.0,160.1,160.09,6.2464]
[1721343671802,15.0,160.1,160.08,6.2467]
[1721343671998,15.0,160.09,160.08,6.2467]
[1721343672220,6.2449,160.13,160.08,6.2467]
[1721343672221,15.0,160.1,160.09,6.2464]
[1721343672928,6.0018,160.14,160.1,6.246]
[1721343673103,15.0,160.11,160.1,6.246]
[1721343674016,15.0,160.11,160.09,21.8623]
[1721343675319,15.0,160.11,160.1,6.246]
[1721343675705,15.0,160.11,160.09,21.8623]
[1721343676324,15.0,160.11,160.09,15.616]
[1721343676518,15.0,160.1,160.09,15.616]
[1721343677525,15.0,160.1,160.09,21.8624]
[1721343679125,15.0,160.11,160.09,21.8624]
[1721343679506,15.0,160.11,160.09,21.8621]
[1721343679703,15.0,160.1,160.09,21.8621]
[1721343680925,15.0,160.11,160.09,21.8621]
[1721343681439,15.0,160.1,160.09,21.8621]
[1721343683529,15.0,160.1,160.06,16.86759041]
[1721343683734,15.0,160.08,160.07,6.247]
[1721343686745,15.0,160.09,160.08,6.2465]
[1721343688537,15.0,160.09,160.06,15.6184]
[1721343688736,15.0,160.08,160.06,15.6184]
[1721343689434,16.5811,160.11,160.08,15.6168]
[1721343689730,15.0,160.1,160.08,15.6168]
[1721343690034,15.0,160.1,160.08,21.8635]
[1721343690533,15.0,160.09,160.08,21.8635]
[1721343691238,15.0,160.09,160.08,15.6168]
[1721343692823,15.0,160.09,160.07,6.2471]
[1721343693535,15.0,160.08,160.07,6.2471]
[1721343693725,15.0,160.09,160.07,6.2471]
[1721343694332,15.0,160.09,160.06,6.2475]
[1721343694536,15.0,160.07,160.06,6.2475]
[1721343694920,15.0,160.07,160.05,21.8672]
[1721343695323,15.0,160.06,160.05,21.8672]
[1721343696434,15.0,160.06,160.05,15.6193]
[1721343697033,15.0,160.08,160.05,15.6193]
[1721343697743,15.0,160.08,160.06,6.2474]
[1721343698546,15.0,160.08,160.07,15.6179]
[1721343699516,15.0,160.08,160.06,7.49692154]
[1721343699731,15.0,160.07,160.05,6.2479]
[1721343700839,15.0,160.07,160.04,15.6203]
[1721343700840,15.0,160.06,160.04,21.8686]
[1721343701214,15.0,160.05,160.02,1.24955398]
[1721343701417,15.0,160.06,160.04,6.2484]
[1721343701634,15.0,160.06,160.03,6.2486]
[1721343701942,15.0,160.04,160.02,6.249]
[1721343702843,15.0,160.04,160.03,6.2488]
[1721343703138,15.0,160.04,160.02,6.249]
[1721343703342,15.0,160.03,160.02,6.249]
[1721343704115,15.0,160.03,160.01,21.8728]
[1721343704314,15.0,160.04,160.02,6.2492]
[1721343704540,15.0,160.05,160.02,1.24968866]
[1721343705942,15.0,160.05,160.03,6.2485]
[1721343706148,12.348,160.08,160.04,6.2483]
[1721343706445,15.0,160.06,160.04,6.2483]
[1721343706745,15.0,160.06,160.03,21.8704]
[1721343707947,15.0,160.06,160.04,6.2483]
[1721343708537,15.0,160.05,160.03,15.6218]
[1721343709745,15.0,160.06,160.03,21.8704]
[1721343710948,15.0,160.06,160.04,1.24954106]
[1721343712639,15.0,160.06,160.03,23.11993303]
[1721343714045,15.0,160.06,160.03,21.8704]
[1721343715258,15.0,160.05,160.03,21.8704]
[1721343715440,15.0,160.05,160.04,6.2484]
[1721343717255,15.0,160.05,160.0,15.6245]